[Event "81st Georgian Women-ch 2024"]
[Site "Tbilisi"]
[Date "2024.02.18"]
[Round "9.5"]
[White "Arabidze, Meri"]
[Black "Mgeladze, Kesaria"]
[Result "1-0"]
[ECO "A57"]
[WhiteElo "2466"]
[BlackElo "2038"]
[Annotator "TA"]
[PlyCount "85"]
[EventDate "2024.02.08"]
[EventType "tourn"]
[EventCountry "GEO"]
[SourceTitle "playchess.com"]
[Source "ChessBase"]
[SourceQuality "1"]
[TimeControl "40/5400+30:1800+30"]

{[%evp 15,85,38,39,26,32,35,27,39,31,29,47,39,41,35,41,31,19,20,13,19,64,57,60,31,84,78,92,96,88,90,85,94,104,90,85,76,81,81,91,80,81,74,76,73,138,55,83,83,87,80,155,155,173,171,197,192,171,200,162,196,270,252,557,546,559,534,1612,1369,6203,6184,4622,4161]} 1. d4 {[%emt 0:00:08]} Nf6 {[%emt 0:00:13]} 2. c4 {[%emt 0:00:05]} c5 {[%emt 0:00:26]} 3. d5 {[%emt 0:00:07]} b5 {[%emt 0:00:17]} 4. cxb5 {[%emt 0:00:06]} a6 {[%emt 0:00:04]} 5. e3 {[%emt 0:00:17]} axb5 {[%emt 0:00:19]} 6. Bxb5 {[%emt 0:00:26]} Qa5+ {[%emt 0:00:30]} 7. Nc3 {[%emt 0:00:13]} Bb7 {[%emt 0:00:05]} 8. Bd2 {[%emt 0:00:31]} Qb6 {[%emt 0:00:07]} 9. a4 {[%emt 0:00:21] And now e4 would win.} Nxd5 {[%emt 0:01:06][%cal Bf6d5,Bd5b4,Bb4c2][%mdl 32]} 10. Nf3 {[%emt 0:00:07]} e6 {[%emt 0:00:07]} 11. O-O {[%emt 0:00:14] White has an edge.} Be7 {[%emt 0:00:12]} 12. e4 {[%emt 0:00:22]} Nb4 {[%emt 0:00:16]} 13. Ne5 {[%emt 0:00:35]} O-O {[%emt 0:00:40]} 14. Bf4 {[%emt 0:00:24]} (14. Bxd7 $2 Qd6 15. Bf4 Nxd7 $19) 14... Qd8 {[%emt 0:03:49]} 15. Nxd7 {[%emt 0:10:37]} Nxd7 {[%emt 0:00:09]} 16. Qxd7 {[%emt 0:01:04]} Qxd7 {[%emt 0:01:03]} 17. Bxd7 {[%emt 0:00:02]} Nc2 {[%emt 0:05:21]} 18. Rad1 {[%emt 0:05:43]} Nd4 {[%emt 0:03:40]} 19. Bc7 {[%emt 0:05:50]} Ba6 {[%emt 0:14:27]} ({Better is} 19... Bc8 $14 20. Bb5 Ba6) 20. Nb5 $16 {[%emt 0:19:55]} Bc8 {[%emt 0:01:59]} 21. Nxd4 {[%emt 0:09:54]} Bxd7 {[%emt 0:01:20] [#]} 22. Nf5 {[%emt 0:04:20]} exf5 {[%emt 0:00:16]} 23. Rxd7 {[%emt 0:00:02]} Rfe8 {[%emt 0:01:58]} 24. exf5 {[%emt 0:05:03] Re1 is the strong threat.} Rxa4 {[%emt 0:00:41]} 25. Re1 {[%emt 0:12:05]} Bf8 {[%emt 0:01:11]} 26. Kf1 {[%emt 0:03:52]} (26. Rxe8 $2 {gets mated.} Ra1+) 26... Rxe1+ {[%emt 0:08:17]} 27. Kxe1 {[%emt 0:00:03][%mdl 4096] Endgame. KRB-KRB} Ra7 {[%emt 0:01:29]} 28. Kd2 {[%emt 0:03:37]} Rb7 {[%emt 0:01:59]} 29. Kc3 {[%emt 0:00:42]} h5 {[%emt 0:16:40]} (29... c4 $142) 30. h4 {[%emt 0:01:22]} (30. b3 $16) 30... f6 {[%emt 0:09:42][%cal Oc5c4]} 31. b3 {[%emt 0:02:14]} Ra7 {[%emt 0:03:41]} 32. f3 {[%emt 0:01:35]} Ra1 {[%emt 0:09:43] [#]} (32... Rb7 $142) 33. Bf4 $1 {[%emt 0:05:52] White is more active.} Rg1 {[%emt 0:00:45]} 34. g3 {[%emt 0:01:10]} Rf1 {[%emt 0:00:05] [#]} 35. Rd3 {[%emt 0:00:05]} Kf7 {[%emt 0:01:05]} 36. Kc4 {[%emt 0:00:26]} Be7 {[%emt 0:01:03]} 37. Kd5 {[%emt 0:00:59]} Rg1 {[%emt 0:01:12]} (37... g5 {is a better defense.} 38. fxg6+ Kxg6) 38. Kc6 $18 {[%emt 0:02:50]} Rb1 $2 {[%emt 0:00:41]} (38... Kf8 {is more resistant.} 39. Be3 Rxg3) 39. Be3 {[%emt 0:01:21] White is clearly winning.} Rb2 {[%emt 0:02:15]} 40. Bxc5 {[%emt 0:00:00]} Rc2 {[%emt 0:00:00]} 41. b4 {[%emt 0:01:31][%cal Bb3b4,Bb4c5][%mdl 32] Rd7 would kill now.} Kg8 {[%emt 0:01:10]} 42. Re3 {[%emt 0:00:40]} Bxc5 {[%emt 0:00:54]} 43. bxc5 {[%emt 0:00:01] Weighted Error Value: White=0.05 (flawless) /Black=0.24 (precise) .  Mistake:       	White=1     	Black=5      Inaccurate:     	White=1     	Black=4      OK:         	White=17    	Black=11     Best:        	White=4     	Black=1      Brilliant:      	White=1     	---} 1-0